bitfinex/quotes_SOLUSD_20260114
["timestamp","ask_amount","ask_price","bid_price","bid_amount"]
[1768395721595,0.59481341,144.42,144.4,0.66841416]
[1768395721797,0.65481339,144.43,144.4,0.66841416]
[1768395721995,109.75334051,144.44,144.4,0.66841416]
[1768395722581,0.65481339,144.43,144.4,0.66841416]
[1768395723205,102.82981339,144.44,144.41,0.66841416]
[1768395723775,0.65481339,144.44,144.41,0.66841416]
[1768395725801,7.57826349,144.44,144.41,0.66841416]
[1768395726192,0.68709369,144.41,144.38,0.7220061]
[1768395726786,0.68709369,144.41,144.38,7.64787952]
[1768395727101,0.68709369,144.42,144.39,0.7220061]
[1768395730329,0.68709369,144.39,144.36,0.8220061]
[1768395730615,0.68709369,144.39,144.36,0.1]
[1768395730616,0.68709369,144.38,144.36,0.1]
[1768395730911,4.02569273,144.39,144.36,4.84769883]
[1768395730912,0.68709369,144.39,144.36,4.84769883]
[1768395731086,0.68709369,144.41,144.38,0.7220061]
[1768395731290,0.68709369,144.41,144.38,4.74769883]
[1768395732304,7.61201629,144.41,144.38,4.74769883]
[1768395732507,7.61201629,144.41,144.38,0.7220061]
[1768395734108,7.61201629,144.41,144.38,4.74769883]
[1768395736810,7.61201629,144.41,144.38,0.7220061]
[1768395737325,0.68709369,144.44,144.41,0.7220061]
[1768395737511,0.68709369,144.44,144.41,4.74769883]
[1768395737512,7.61038363,144.44,144.41,4.74769883]
[1768395737716,0.68709369,144.47,144.44,0.7220061]
[1768395738031,0.68709369,144.48,144.41,4.02569273]
[1768395738204,0.68709369,144.48,144.45,7.23e-06]
[1768395738911,7.60863807,144.48,144.44,4.02569273]
[1768395739228,0.68709369,144.47,144.44,3.96569273]
[1768395740932,7.60895678,144.47,144.44,3.96569273]
[1768395741837,0.68709369,144.47,144.44,3.96569273]
[1768395742633,0.68709369,144.47,144.43,11.62501105]
[1768395743715,0.68709369,144.47,144.44,6.92323154]
[1768395745824,0.68709369,144.47,144.44,6.86323154]
[1768395746741,0.68709369,144.47,144.43,11.62485186]
[1768395747044,0.68709369,144.47,144.43,10.94924711]
[1768395747826,0.68709369,144.47,144.43,11.62485186]
[1768395748718,0.65507751,144.46,144.42,6.92405982]
[1768395748942,0.65507751,144.46,144.42,11.6253573]
[1768395750440,0.65507751,144.46,144.43,10.94934046]
[1768395751833,0.65507751,144.46,144.44,4.02569273]
[1768395752020,0.65507751,144.47,144.45,4.02569273]
[1768395752225,109.09630419,144.49,144.45,4.02569273]
[1768395752226,0.65507751,144.48,144.45,4.02569273]
[1768395752411,0.65507751,144.48,144.43,17.30942325]
[1768395752613,0.65507751,144.48,144.43,4.02569273]
[1768395753226,0.65507751,144.48,144.43,4.70129748]
[1768395753540,0.65507751,144.48,144.44,6.92309397]
[1768395753541,0.65507751,144.47,144.44,6.92309397]
[1768395755848,7.57695004,144.47,144.43,10.17466882]
[1768395756040,0.71360952,144.46,144.43,10.17466882]
[1768395756234,0.71360952,144.46,144.42,7.59972469]
[1768395756457,0.71360952,144.46,144.42,10.17521312]
[1768395757348,0.71360952,144.46,144.43,6.92375787]
[1768395758753,0.71360952,144.46,144.43,7.59936262]
[1768395759245,0.71360952,144.48,144.43,6.92375787]
[1768395759451,0.71360952,144.48,144.44,2.57548843]
[1768395759619,0.71360952,144.48,144.43,27.4842743]
[1768395760643,0.71360952,144.48,144.44,0.67560475]
[1768395761030,0.71360952,144.48,144.45,6.92281066]
[1768395761225,0.71360952,144.48,144.44,0.67560475]
[1768395761226,0.71360952,144.48,144.44,7.59875866]
[1768395765049,6.92091581,144.49,144.44,6.92315391]
[1768395765229,9.49640424,144.49,144.44,6.92315391]
[1768395765749,2.57548843,144.48,144.44,6.92315391]
[1768395767448,9.49702297,144.48,144.41,24.23654871]
[1768395767749,9.49702297,144.48,144.42,2.57548843]
[1768395768050,9.49702297,144.48,144.41,2.57548843]
[1768395769251,9.49702297,144.48,144.42,6.92424871]
[1768395769753,2.57548843,144.47,144.42,6.92424871]
[1768395769931,6.92153454,144.48,144.42,6.92424871]
[1768395770230,2.57548843,144.47,144.42,6.92424871]
[1768395771354,6.92233144,144.46,144.41,6.9247282]
[1768395771543,6.89233145,144.46,144.41,6.9247282]
[1768395773736,6.89233145,144.46,144.41,2.57548843]
[1768395775258,6.89233145,144.46,144.38,32.51014014]
[1768395775465,2.57548843,144.44,144.4,6.92486691]
[1768395775765,2.54548844,144.44,144.4,6.92486691]
[1768395775961,2.54548844,144.44,144.39,6.9253728]
[1768395776268,24.19816005,144.46,144.39,6.9253728]
[1768395776269,2.57548843,144.43,144.39,6.9253728]
[1768395776564,2.57548843,144.44,144.39,6.9253728]
[1768395777135,9.49897645,144.44,144.39,6.9253728]
[1768395778365,9.49897645,144.44,144.38,17.31465171]
[1768395778553,2.57548843,144.43,144.38,17.31465171]
[1768395778755,2.54548844,144.43,144.38,19.89014014]
[1768395779056,6.92348802,144.44,144.38,19.89014014]
[1768395779260,9.49897645,144.44,144.38,19.89014014]
[1768395779446,9.49897645,144.44,144.38,26.81630719]
[1768395779646,9.49897645,144.44,144.38,39.43630719]
[1768395780068,9.49897645,144.44,144.39,2.57548843]
[1768395780555,9.49897645,144.44,144.4,6.92520775]
[1768395782556,9.49897645,144.44,144.39,6.92545165]
[1768395782750,2.57548843,144.42,144.36,19.9925681]
[1768395782951,2.57548843,144.42,144.36,17.41707967]
[1768395783151,2.57548843,144.42,144.36,19.9925681]
[1768395783559,2.57548843,144.43,144.38,6.92590544]
[1768395784463,9.499726,144.43,144.38,6.92590544]
[1768395786488,19.88371329,144.44,144.38,9.50139387]
[1768395786956,19.88371329,144.44,144.38,6.92590544]
[1768395787666,26.80700323,144.44,144.37,24.24270777]
[1768395787967,2.57548843,144.41,144.37,6.92664681]
[1768395788267,2.54917957,144.41,144.37,6.92664681]
[1768395788466,2.57548843,144.4,144.36,7.02709735]
[1768395789155,2.57548843,144.41,144.36,7.02709735]
[1768395789561,9.50064213,144.41,144.36,7.02709735]
[1768395790271,2.57548843,144.39,144.36,7.02709735]
[1768395790462,2.57548843,144.4,144.36,7.02709735]
[1768395792454,9.50110066,144.4,144.36,7.02709735]
[1768395794658,2.57548843,144.39,144.36,0.1]
[1768395797072,9.50126602,144.39,144.36,0.1]
[1768395800772,2.57548843,144.38,144.36,0.1]
[1768395803785,9.50126602,144.39,144.36,0.1]
[1768395803985,2.57548843,144.37,144.34,0.1]
[1768395804168,2.57548843,144.35,144.32,0.2]
[1768395804479,2.57548843,144.34,144.32,0.2]
[1768395806495,2.57548843,144.34,144.31,7.0293604]
[1768395806496,2.57548843,144.33,144.31,0.1]
[1768395809685,2.57548843,144.32,144.31,0.1]
[1768395809988,6.92860593,144.33,144.29,7.03017635]
[1768395810184,2.57548843,144.32,144.29,7.03017635]
[1768395813069,9.50477879,144.32,144.29,0.1]
[1768395813681,2.57548843,144.3,144.28,0.1]
[1768395813877,6.92929036,144.32,144.27,0.1]
[1768395813878,2.57548843,144.29,144.27,0.1]
[1768395814270,2.57548843,144.3,144.27,0.1]
[1768395814675,9.50610968,144.29,144.27,0.1]
[1768395815299,10.96580143,144.29,144.27,0.1]
[1768395815504,6.93062125,144.29,144.27,0.1]
[1768395816183,10.96580143,144.29,144.27,0.1]
[1768395816375,10.96580143,144.29,144.27,1e-08]
[1768395816799,6.93062125,144.29,144.27,1e-08]
[1768395817092,10.96580143,144.29,144.27,1e-08]
[1768395817483,4.03518018,144.29,144.27,1e-08]
[1768395818092,58.89281505,144.33,144.27,1e-08]
[1768395818281,24.24998266,144.33,144.27,1e-08]
[1768395818678,28.28516284,144.33,144.27,4.03518019]
[1768395819295,4.03518018,144.32,144.27,1e-08]
[1768395819480,6.92952671,144.31,144.27,1e-08]
[1768395820000,6.92952671,144.31,144.27,4.03518019]
[1768395820695,6.92904656,144.32,144.27,10.96655873]
[1768395820996,6.92904656,144.32,144.29,4.03518018]
[1768395821581,6.92904656,144.32,144.27,6.93137855]
[1768395821798,6.92904656,144.32,144.28,4.03518018]
[1768395822604,10.96422674,144.32,144.27,4.03518019]
[1768395823699,28.28578654,144.33,144.27,10.96655815]
[1768395825094,28.28578654,144.33,144.27,6.93137797]
[1768395825294,6.92952671,144.31,144.27,6.93137797]
[1768395825494,6.92952671,144.31,144.27,10.96655815]
[1768395827306,6.92952671,144.31,144.27,6.93137797]
[1768395827610,6.92952671,144.31,144.27,10.96655815]
[1768395828604,6.92952671,144.31,144.27,1e-08]
[1768395828794,6.92952671,144.31,144.27,4.03518019]
[1768395829895,24.25212287,144.32,144.27,4.03518019]
[1768395830413,4.03518018,144.33,144.29,4.03518018]
[1768395830414,6.92877109,144.33,144.29,4.03518018]
[1768395830983,6.92877109,144.33,144.3,4.03518018]
[1768395831906,6.92760651,144.35,144.3,4.03518018]
[1768395832488,6.92760651,144.35,144.27,21.36380013]
[1768395832489,4.03518018,144.34,144.28,6.93078245]
[1768395832689,4.03518018,144.34,144.29,10.96562074]
[1768395833509,24.24662278,144.35,144.29,10.96562074]
[1768395833710,28.28180296,144.35,144.29,10.96562074]
[1768395834213,28.28180296,144.35,144.3,4.03518018]
[1768395836910,28.28180296,144.35,144.29,10.96539296]
[1768395837292,6.92856647,144.33,144.27,29.96861995]
[1768395837492,6.92856647,144.33,144.28,4.03518018]
[1768395838008,6.92856647,144.33,144.27,29.96861995]
[1768395838213,6.92856647,144.33,144.28,4.03518018]
[1768395839021,6.92856647,144.33,144.27,29.96861995]
[1768395839410,6.92856647,144.33,144.28,4.03518018]
[1768395839609,6.92856647,144.33,144.28,10.96595953]
[1768395840495,4.03518018,144.32,144.27,6.93129225]
[1768395840795,4.03518018,144.32,144.27,10.96647243]
[1768395841899,28.28516284,144.33,144.28,10.9661056]
[1768395842721,28.28516284,144.33,144.28,4.03518018]
[1768395843018,4.03518018,144.32,144.27,6.93144798]
[1768395843998,6.92952671,144.31,144.27,1e-08]
[1768395846724,10.96470689,144.31,144.27,1e-08]
[1768395846914,4.03518018,144.3,144.27,1e-08]
[1768395848026,6.92952671,144.31,144.27,1e-08]
[1768395848203,10.96470689,144.31,144.27,1e-08]
[1768395848402,17.32344595,144.32,144.27,1e-08]
[1768395848604,4.03518018,144.31,144.27,1e-08]
[1768395848905,4.03518018,144.32,144.27,4.03518019]
[1768395849104,10.96374665,144.33,144.27,4.03518019]
[1768395849721,6.92856647,144.33,144.29,4.03518018]
[1768395851221,4.03518018,144.32,144.27,6.93128724]
[1768395852632,10.96470689,144.31,144.27,1e-08]
[1768395852931,6.92952671,144.31,144.27,1e-08]
[1768395858838,4.03518018,144.29,144.27,1e-08]
[1768395860731,6.93096756,144.28,144.27,1e-08]
[1768395862335,6.93048721,144.29,144.27,1e-08]
[1768395864613,7.5880046,144.28,144.27,1e-08]
[1768395864936,0.65703704,144.28,144.27,1e-08]
[1768395865835,0.65703704,144.29,144.27,1e-08]
[1768395866027,0.65703704,144.29,144.27,4.03518019]
[1768395866235,0.65703704,144.29,144.27,1e-08]
[1768395866941,0.65703704,144.28,144.27,1e-08]
[1768395870946,6.93096756,144.28,144.27,1e-08]
[1768395871243,10.96566739,144.29,144.27,1e-08]
[1768395871438,0.65703704,144.28,144.27,1e-08]
[1768395872230,7.5880046,144.28,144.27,1e-08]
[1768395872437,6.93096756,144.28,144.27,1e-08]
[1768395873440,0.65703704,144.28,144.27,1e-08]
[1768395875627,6.93048721,144.29,144.27,1e-08]
[1768395876235,0.65703704,144.28,144.27,1e-08]
[1768395877048,2.58248998,144.28,144.27,1e-08]
[1768395877646,9.51345754,144.28,144.27,1e-08]
[1768395877847,2.58248998,144.27,144.23,0.1]
[1768395878146,0.65703704,144.26,144.23,0.1]
[1768395879146,6.93213328,144.26,144.23,0.1]
[1768395879354,0.65703704,144.25,144.23,0.1]
[1768395880445,0.65703704,144.25,144.23,7.03336222]
[1768395880645,0.65703704,144.26,144.23,7.03336222]
[1768395881050,0.65703704,144.26,144.23,7.70896697]
[1768395885660,0.65703704,144.26,144.23,7.03336222]
[1768395886356,0.65703704,144.26,144.23,6.53336222]
[1768395886658,0.65703704,144.25,144.23,6.53336222]
[1768395887035,7.58903613,144.26,144.23,6.53336222]
[1768395887435,0.65703704,144.26,144.23,6.53336222]
[1768395887633,0.65703704,144.25,144.22,7.60931272]
[1768395892745,17.32826329,144.28,144.23,0.67560475]
[1768395892746,0.65760839,144.28,144.23,0.67560475]
[1768395893061,0.65760839,144.28,144.24,3.25809473]
[1768395893854,7.58905636,144.27,144.24,0.67560475]
[1768395894651,0.65760839,144.26,144.23,7.60869984]
[1768395894967,0.65760839,144.26,144.22,22.83187459]
[1768395895283,0.65760839,144.26,144.22,20.24938461]
[1768395896066,7.5896537,144.26,144.22,22.83187459]
[1768395896742,7.5896537,144.26,144.22,20.24938461]
[1768395896945,0.65760839,144.25,144.22,20.24938461]
[1768395897144,0.65760839,144.25,144.22,7.60938461]
[1768395898345,0.65760839,144.25,144.22,10.19187459]
[1768395898659,0.65760839,144.25,144.22,7.60938461]
[1768395898862,0.65760839,144.25,144.22,10.19187459]
[1768395899281,0.65760839,144.25,144.22,6.93377986]
[1768395899769,7.59005914,144.25,144.22,6.93377986]
[1768395900069,7.59005914,144.25,144.22,7.60938461]
[1768395900475,7.59005914,144.25,144.22,0.67560475]
[1768395900964,0.65760839,144.24,144.21,6.93411636]
[1768395901169,6.93245075,144.25,144.21,7.622038]
[1768395901748,24.26347328,144.25,144.2,0.68792164]
[1768395901944,24.26347328,144.25,144.19,0.68792164]
[1768395901945,2.58248998,144.24,144.19,0.68792164]
[1768395902145,2.58248998,144.24,144.2,0.68792164]
[1768395902343,2.58248998,144.24,144.19,7.62305071]
[1768395902551,24.26347328,144.25,144.17,0.78792164]
[1768395902765,2.58248998,144.21,144.17,0.78792164]
[1768395902970,2.55248999,144.21,144.17,0.78792164]
[1768395903174,0.65760839,144.21,144.17,7.72405575]
[1768395903750,0.62760838,144.21,144.17,7.72405575]
[1768395904175,30.0,144.2,144.17,7.72405575]
[1768395904380,29.96999995,144.2,144.17,7.72405575]
[1768395904675,2.58248998,144.22,144.17,7.72405575]
[1768395904968,2.58248998,144.21,144.17,0.78792164]
[1768395905272,2.58248998,144.21,144.17,7.72413151]
[1768395905870,0.65760839,144.2,144.17,7.72413151]
[1768395906066,0.65760839,144.2,144.17,0.78792164]
[1768395906897,0.65760839,144.22,144.18,0.68792164]
[1768395907189,0.65760839,144.22,144.19,0.68792164]
[1768395907693,0.65760839,144.23,144.2,0.68792164]
[1768395908456,0.65760839,144.23,144.2,3.27041162]
[1768395908959,0.65760839,144.23,144.2,0.68792164]
[1768395909163,0.65760839,144.23,144.2,3.27041162]
[1768395909663,0.65760839,144.23,144.2,2.58248998]
[1768395909865,0.65760839,144.22,144.19,0.68792164]
[1768395910075,0.65760839,144.21,144.18,0.68792164]
[1768395911803,0.65760839,144.21,144.17,2.68248998]
[1768395911804,0.65760839,144.2,144.17,0.78792164]
[1768395911961,0.65760839,144.2,144.17,0.1]
[1768395912665,0.65760839,144.2,144.17,0.78792164]
[1768395915492,0.65760839,144.2,144.17,0.1]
[1768395916492,0.65760839,144.2,144.17,0.78792164]
[1768395916819,0.65760839,144.22,144.19,0.68792164]
[1768395917095,0.65760839,144.22,144.19,1.006e-05]
[1768395917859,0.65760839,144.22,144.17,8.83e-06]
[1768395918057,0.65760839,144.22,144.19,2.58248998]
[1768395919597,0.65760839,144.22,144.18,0.67529151]
[1768395919598,0.65760839,144.22,144.18,3.25778149]
[1768395921676,7.59150274,144.22,144.18,3.25778149]
[1768395921872,0.72316622,144.21,144.18,2.58248998]
[1768395922483,0.72316622,144.21,144.14,12.66]
[1768395922689,0.72316622,144.21,144.17,2.58248998]
[1768395923199,0.72316622,144.19,144.15,2.58248998]
[1768395923886,0.72316622,144.18,144.12,7.03850888]
[1768395924188,0.72316622,144.18,144.14,2.58248998]
[1768395925408,0.72316622,144.17,144.14,2.58248998]
[1768395925917,0.72316622,144.17,144.13,2.58248998]
[1768395928409,0.72316622,144.17,144.14,2.58248998]
[1768395929149,0.72316622,144.17,144.15,2.58248998]
[1768395929308,0.72316622,144.19,144.13,6.93814434]
[1768395929512,0.72316622,144.19,144.16,2.58248998]
[1768395929919,0.72316622,144.2,144.17,2.58248998]
[1768395930099,0.72316622,144.21,144.18,2.58248998]
[1768395930416,0.72316622,144.21,144.19,2.58248998]
[1768395930617,0.72316622,144.23,144.2,2.58248998]
[1768395930826,0.72316622,144.23,144.21,2.58248998]
[1768395931205,0.72316622,144.25,144.21,2.58248998]
[1768395931406,0.72316622,144.25,144.22,2.58248998]
[1768395931923,0.72316622,144.24,144.21,2.58248998]
[1768395934027,0.72316622,144.24,144.18,17.33903005]
[1768395934225,0.72316622,144.24,144.21,2.58248998]
[1768395935130,0.72316622,144.24,144.2,2.58248998]
[1768395936932,0.72316622,144.23,144.2,2.58248998]
[1768395937138,0.72316622,144.22,144.18,2.58248998]
[1768395937320,0.72316622,144.22,144.18,4.03876465]
[1768395937504,0.72316622,144.22,144.15,12.66]
[1768395937710,0.72316622,144.22,144.18,4.03876465]
[1768395938228,0.72316622,144.22,144.17,4.03876465]
[1768395938409,0.72316622,144.22,144.16,6.93673695]
[1768395938809,0.72316622,144.22,144.17,4.03876465]
[1768395939021,0.72316622,144.21,144.17,4.03876465]
[1768395939607,0.72316622,144.2,144.15,10.97579543]
[1768395939816,0.72316622,144.2,144.16,4.03876465]
[1768395940026,0.72316622,144.19,144.15,6.93703078]
[1768395940330,0.69316621,144.19,144.15,4.03876465]
[1768395941212,0.69316621,144.19,144.14,6.9675173]
[1768395941413,0.69316621,144.19,144.15,4.03876465]
[1768395941925,6.93530538,144.19,144.15,4.03876465]
[1768395942124,0.72316622,144.18,144.15,4.03876465]
[1768395942515,0.72316622,144.18,144.14,4.06876466]
[1768395942824,0.72316622,144.17,144.13,4.06876466]
[1768395943830,0.72316622,144.17,144.13,0.03000001]
[1768395944156,0.72316622,144.17,144.13,4.06876466]
[1768395944514,0.72316622,144.17,144.14,4.03876465]
[1768395946637,0.69316622,144.17,144.14,4.03876465]
[1768395946813,0.69316622,144.17,144.14,4.09876466]
[1768395947014,0.69316622,144.17,144.15,4.03876465]
[1768395947213,0.69316622,144.17,144.14,0.06000001]
[1768395947413,6.9354462,144.19,144.15,4.09876466]
[1768395947611,9.82516854,144.18,144.14,4.03876465]
[1768395947810,6.9354462,144.19,144.14,4.09876466]
[1768395948040,9.82516353,144.18,144.14,4.09876466]
[1768395948339,6.9354462,144.19,144.14,4.09876466]
[1768395948529,0.72316622,144.19,144.15,4.09876466]
[1768395948729,0.72316622,144.19,144.16,4.03876465]
[1768395948930,0.72316622,144.19,144.17,4.03876465]
[1768395949145,0.72316622,144.21,144.18,4.03876465]
[1768395949822,0.72316622,144.21,144.18,4.09876466]
[1768395950340,0.72316622,144.21,144.15,0.06000001]
[1768395950546,0.69307108,144.2,144.16,0.06000001]
[1768395950847,0.69307108,144.22,144.18,0.06000001]
[1768395951145,0.69307108,144.22,144.17,4.09876466]
[1768395951317,0.69307108,144.22,144.18,0.06000001]
[1768395952143,0.69307108,144.2,144.16,0.06000001]
[1768395952640,0.69307108,144.2,144.15,4.03876465]
[1768395952641,0.69307108,144.2,144.15,4.09876466]
[1768395952824,0.69307108,144.2,144.15,0.06000001]
[1768395953028,0.69307108,144.2,144.15,4.09876466]
[1768395953531,0.69307108,144.2,144.16,0.06000001]
[1768395957237,0.69307108,144.2,144.16,4.09876466]
[1768395957555,0.69307108,144.2,144.17,0.06000001]
[1768395958070,0.69307108,144.2,144.17,4.09876466]
[1768395958235,0.69307108,144.21,144.17,4.09876466]
[1768395958433,0.69307108,144.21,144.17,4.03876465]
[1768395958764,0.69307108,144.21,144.17,4.09876466]
[1768395958935,6.93348997,144.23,144.14,0.06000001]
[1768395958936,0.69307108,144.19,144.14,0.06000001]
[1768395959135,4.03876465,144.2,144.16,0.09000001]
[1768395959332,4.65466862,144.19,144.16,0.09000001]
[1768395959536,4.03876465,144.2,144.16,0.09000001]
[1768395959737,4.65473852,144.19,144.15,0.09000001]
[1768395959957,4.03876465,144.2,144.15,0.09000001]
[1768395960252,4.65369337,144.19,144.15,0.09000001]
[1768395960441,10.97388791,144.2,144.14,11.0664582]
[1768395960638,4.65429578,144.19,144.14,11.0664582]
[1768395960840,10.97388791,144.2,144.14,11.0664582]
[1768395961042,0.69307108,144.18,144.13,4.12876466]
[1768395961338,0.69307108,144.17,144.13,0.09000001]
[1768395963335,4.73183573,144.17,144.13,0.09000001]
[1768395965356,0.69307108,144.15,144.12,0.1]
[1768395965541,4.67183569,144.15,144.12,0.1]
[1768395965743,0.63307104,144.15,144.12,0.1]
[1768395965949,7.57036842,144.15,144.12,0.1]
[1768395966148,11.60913307,144.15,144.12,0.1]
[1768395966838,10.97606203,144.15,144.12,0.1]
[1768395967561,11.66913311,144.15,144.12,0.1]
[1768395967962,0.69307108,144.14,144.12,0.1]
[1768395968147,0.66307106,144.14,144.12,0.1]
[1768395968655,4.03876465,144.15,144.12,0.1]
[1768395969057,6.93577472,144.18,144.12,0.1]
[1768395969235,4.03876465,144.15,144.12,0.1]
[1768395969434,4.03876465,144.14,144.12,0.1]
[1768395970165,4.03876465,144.13,144.12,0.1]
[1768395970545,4.73183573,144.13,144.09,0.21000014]
[1768395970863,4.73183573,144.13,144.08,0.21000014]
[1768395970864,0.69307108,144.12,144.08,0.21000014]
[1768395971038,0.69307108,144.12,144.07,0.31000014]
[1768395971039,4.73183573,144.12,144.07,0.31000014]
[1768395971241,0.69307108,144.11,144.07,0.31000014]
[1768395971444,4.03876465,144.1,144.07,0.31000014]
[1768395971651,4.73183573,144.11,144.07,0.31000014]
[1768395971853,0.69307108,144.11,144.07,7.25096374]
[1768395972245,0.69307108,144.11,144.07,11.28972839]
[1768395972956,0.69307108,144.13,144.09,0.21000014]
[1768395973164,0.69307108,144.14,144.1,0.21000014]
[1768395973380,4.73183573,144.14,144.1,0.21000014]
[1768395973541,0.69307108,144.18,144.13,4.03876465]
[1768395973851,0.69307108,144.18,144.13,4.24876479]
[1768395974051,0.69307108,144.18,144.14,4.03876465]
[1768395974240,0.69307108,144.18,144.15,4.03876465]
[1768395974446,16.69876465,144.2,144.15,4.03876465]
[1768395974447,0.69307108,144.2,144.16,4.03876465]
[1768395974646,0.69307108,144.2,144.16,0.21000014]
[1768395974953,0.69307108,144.2,144.16,4.24876479]
[1768395975769,0.69307108,144.2,144.17,4.03876465]
[1768395976066,0.69307108,144.21,144.16,4.24876479]
[1768395976263,4.73183573,144.21,144.17,0.21000014]
[1768395976566,0.69307108,144.21,144.17,4.24876479]
[1768395976761,0.69307108,144.21,144.17,0.21000014]
[1768395976957,0.69307108,144.21,144.17,4.24876479]
[1768395977581,0.69307108,144.2,144.16,11.1852202]
[1768395978447,0.69307108,144.2,144.16,7.14645555]
[1768395978649,0.69307108,144.2,144.16,11.1852202]
[1768395979277,0.69307108,144.2,144.16,4.03876465]
[1768395979448,0.69307108,144.2,144.17,4.03876465]
[1768395979649,0.6618867,144.21,144.17,4.24876479]
[1768395980068,0.6618867,144.21,144.17,0.21000014]
[1768395980245,0.6618867,144.21,144.17,4.24876479]
[1768395980656,0.6618867,144.21,144.17,11.18500108]
[1768395980862,0.6618867,144.21,144.17,10.97500094]
[1768395981777,0.6618867,144.21,144.17,6.93623629]
[1768395983482,0.6618867,144.21,144.18,4.03876465]
[1768395983857,0.7143012,144.22,144.19,4.03876465]
[1768395984671,12.66,144.24,144.19,4.03876465]
[1768395984672,0.7143012,144.23,144.19,4.24876479]
[1768395986083,13.3743012,144.24,144.2,0.21000014]
[1768395986256,9.81553834,144.23,144.2,0.21000014]
[1768395986457,13.3743012,144.24,144.2,0.21000014]
[1768395986657,9.81441077,144.23,144.2,0.21000014]
[1768395986875,17.41306585,144.24,144.2,0.21000014]
[1768395987071,9.81443536,144.23,144.19,7.14524911]
[1768395987273,17.41306585,144.24,144.19,7.14524911]
[1768395987581,9.81334014,144.23,144.19,7.14524911]
[1768395987761,0.7143012,144.23,144.19,7.14524911]
[1768395988780,0.7143012,144.23,144.19,11.18401376]
[1768395988977,0.7143012,144.23,144.19,10.97401362]
[1768395990093,0.7143012,144.23,144.18,10.9743293]
[1768395990969,0.7143012,144.23,144.18,7.14556479]
[1768395991175,0.7143012,144.23,144.18,11.18432944]
[1768395991687,0.7143012,144.23,144.19,4.03876465]
[1768395993382,0.7143012,144.23,144.18,11.18432944]
[1768395994870,5.87673465,144.22,144.18,11.18432944]
[1768395995070,0.7143012,144.22,144.18,11.18432944]
[1768395995885,0.7143012,144.22,144.13,10.71887535]
[1768395995886,0.7143012,144.22,144.17,7.14607876]
[1768395996188,0.7143012,144.2,144.15,11.18578367]
[1768395996367,0.7143012,144.2,144.16,4.03876465]
[1768395997191,0.7143012,144.2,144.15,11.18578367]
[1768395997372,0.7143012,144.19,144.15,2.79587708]
[1768395997688,0.7143012,144.19,144.15,9.73299647]
[1768395998192,0.7143012,144.19,144.15,9.52299633]
[1768395999096,0.7143012,144.19,144.15,8.79799633]
[1768395999275,0.7143012,144.19,144.15,2.58587694]
[1768396000162,0.7143012,144.19,144.14,10.21480119]
[1768396000779,0.7143012,144.18,144.14,3.27718651]
[1768396001078,0.7143012,144.17,144.12,10.21565767]
[1768396001279,0.68430121,144.17,144.12,10.21565767]
[1768396001480,0.68430121,144.17,144.12,7.62978073]
[1768396001695,2.58587694,144.17,144.11,10.21624376]
[1768396002014,6.93532424,144.19,144.1,6.93950686]
[1768396002015,15.24587694,144.16,144.1,6.93950686]
[1768396002178,15.24587694,144.16,144.1,9.5253838]
[1768396002380,15.24587694,144.16,144.11,7.63044201]
[1768396002582,12.66,144.16,144.11,7.63044201]
[1768396002781,15.24587694,144.16,144.11,7.63044201]
[1768396003187,12.66,144.16,144.13,3.27718651]
[1768396003589,12.66,144.16,144.13,0.69130957]
[1768396004296,13.3743012,144.16,144.13,0.69130957]
[1768396004801,13.3743012,144.16,144.13,7.62946968]
[1768396006201,13.3743012,144.16,144.13,0.69130957]
[1768396009692,2.58587694,144.2,144.13,0.69130957]
[1768396009693,0.7143012,144.21,144.14,2.58587694]
[1768396009900,9.80395522,144.2,144.16,0.69130957]
[1768396010201,5.15983334,144.19,144.16,0.69130957]
[1768396010707,0.7143012,144.2,144.16,0.69130957]
[1768396010896,0.7143012,144.2,144.16,10.21374686]
[1768396011603,0.7143012,144.2,144.16,7.62786992]
[1768396011986,3.29360771,144.21,144.17,0.65544623]
[1768396012182,9.80646647,144.2,144.17,0.65544623]
[1768396012414,0.70773077,144.21,144.17,0.65544623]
[1768396012602,9.80793237,144.2,144.17,0.65544623]
[1768396012800,0.70773077,144.21,144.17,0.65544623]
[1768396013107,9.80790941,144.2,144.17,0.65544623]
[1768396013404,0.70773077,144.21,144.17,0.65544623]
[1768396013589,9.80886377,144.2,144.17,0.65544623]
[1768396013901,0.70773077,144.21,144.17,0.65544623]
[1768396014211,0.70773077,144.19,144.15,0.65544623]
[1768396014399,0.70773077,144.18,144.15,0.65544623]
[1768396015288,3.29360771,144.19,144.15,0.65544623]
[1768396015488,0.70773077,144.19,144.15,0.65544623]
[1768396016015,0.70773077,144.19,144.15,3.24132317]
[1768396016816,0.70773077,144.19,144.15,0.65544623]
[1768396017115,0.70773077,144.19,144.15,3.24132317]
[1768396017412,5.16835475,144.18,144.15,3.24132317]
[1768396017604,0.70773077,144.19,144.15,3.24132317]
[1768396017908,5.16854725,144.18,144.15,3.24132317]
[1768396018105,0.70773077,144.19,144.15,3.24132317]
[1768396018313,5.16834093,144.18,144.15,3.24132317]